lending/lending_fUSD_20240710
["ID","MTS","AMOUNT","RATE_DAILY","PERIOD"]
[331629825,1720593044182,-500.0,0.00013698,2]
[331629826,1720593044192,-582.57,0.00013698,2]
[331629827,1720593044200,-502.55,0.00013698,2]
[331629828,1720593044210,-500.0,0.00013698,2]
[331629829,1720593044219,-500.0,0.00013698,2]
[331629830,1720593044229,-521.17,0.00013698,2]
[331629831,1720593044239,-500.0,0.00013698,2]
[331629832,1720593044248,-500.0,0.00013698,2]
[331629833,1720593044258,-500.0,0.00013698,2]
[331629834,1720593044267,-500.0,0.00013698,2]
[331629835,1720593044276,-500.0,0.00013698,2]
[331629836,1720593044286,-500.0,0.00013698,2]
[331629837,1720593044295,-500.0,0.00013698,2]
[331629838,1720593044304,-500.0,0.00013698,2]
[331629839,1720593044314,-340.28000731,0.00013698,2]
[331629840,1720593044323,-976.75,0.00013698,2]
[331629841,1720593044332,-500.0,0.00013698,2]
[331629842,1720593044341,-500.0,0.00013698,2]
[331629843,1720593044351,-500.0,0.00013698,2]
[331629844,1720593044360,-500.0,0.00013698,2]
[331629845,1720593044369,-500.0,0.00013698,2]
[331629846,1720593044378,-500.0,0.00013698,2]
[331629847,1720593044387,-1009.29,0.00013698,2]
[331629848,1720593044396,-585.23,0.00013698,2]
[331629849,1720593044405,-500.0,0.00013698,2]
[331629850,1720593044415,-500.0,0.00013698,2]
[331629851,1720593044424,-1416.9,0.00013698,2]
[331629852,1720593044435,-2369.78,0.00013698,2]
[331629853,1720593044444,-805.84,0.00013698,2]
[331629854,1720593044453,-500.0,0.00013698,2]
[331629855,1720593044462,-500.0,0.00013698,2]
[331629856,1720593044471,-2021.85,0.00013698,2]
[331629857,1720593044480,-599.9,0.00013698,2]
[331629858,1720593044489,-809.03,0.00013698,2]
[331629859,1720593044498,-500.0,0.00013698,2]
[331629860,1720593044507,-737.12,0.00013698,2]
[331629861,1720593044517,-819.96,0.00013698,2]
[331629862,1720593044526,-500.0,0.00013698,2]
[331629863,1720593044536,-500.0,0.00013698,2]
[331629864,1720593044546,-1000.0,0.00013698,2]
[331629865,1720593044555,-759.1,0.00013698,2]
[331629866,1720593044564,-500.0,0.00013698,2]
[331629867,1720593044573,-500.0,0.00013698,2]
[331629868,1720593044582,-500.0,0.00013698,2]
[331629869,1720593044591,-500.0,0.00013698,2]
[331629870,1720593044601,-500.0,0.00013698,2]
[331629871,1720593044610,-764.14,0.00013698,2]
[331629872,1720593044619,-1752.41,0.00013698,2]
[331629873,1720593044628,-549.01,0.00013698,2]
[331629874,1720593044638,-500.0,0.00013698,2]
[331629875,1720593044647,-500.0,0.00013698,2]
[331629876,1720593044656,-530.4,0.00013698,2]
[331629877,1720593044666,-500.0,0.00013698,2]
[331629878,1720593044675,-500.0,0.00013698,2]
[331629879,1720593044685,-640.12,0.00013698,2]
[331629880,1720593044695,-1069.37,0.00013698,2]
[331629881,1720593044703,-500.0,0.00013698,2]
[331629882,1720593044712,-554.66,0.00013698,2]
[331629883,1720593044722,-500.0,0.00013698,2]
[331629884,1720593044731,-675.96,0.00013698,2]
[331629885,1720593044740,-1234.4,0.00013698,2]
[331629886,1720593044749,-768.24,0.00013698,2]
[331629887,1720593044758,-740.04,0.00013698,2]
[331629888,1720593044767,-500.0,0.00013698,2]
[331629889,1720593044776,-535.91,0.00013698,2]
[331629890,1720593044785,-1103.83,0.00013698,2]
[331629891,1720593044795,-2500.0,0.00013698,2]
[331629892,1720593044804,-2500.0,0.00013698,2]
[331629893,1720593044813,-2500.0,0.00013698,2]
[331629894,1720593044822,-2500.0,0.00013698,2]
[331629895,1720593044831,-2500.0,0.00013698,2]
[331629896,1720593044840,-2500.0,0.00013698,2]
[331629897,1720593044849,-500.0,0.00013698,2]
[331629898,1720593044858,-2500.0,0.00013698,2]
[331629899,1720593044868,-2500.0,0.00013698,2]
[331629900,1720593044877,-500.0,0.00013698,2]
[331629901,1720593044886,-2500.0,0.00013698,2]
[331629902,1720593044896,-2500.0,0.00013698,2]
[331629903,1720593044906,-2500.0,0.00013698,2]
[331629904,1720593044916,-2500.0,0.00013698,2]
[331629905,1720593044926,-2500.0,0.00013698,2]
[331629906,1720593044937,-2500.0,0.00013698,2]
[331629907,1720593044946,-2500.0,0.00013698,2]
[331629908,1720593044956,-2500.0,0.00013698,2]
[331629909,1720593044965,-2500.0,0.00013698,2]
[331629910,1720593044974,-2500.0,0.00013698,2]
[331629911,1720593044984,-2500.0,0.00013698,2]
[331629912,1720593044993,-2500.0,0.00013698,2]
[331629913,1720593045003,-2829.12,0.00013698,2]
[331629914,1720593045012,-2500.0,0.00013698,2]
[331629915,1720593045022,-621.19,0.00013698,2]
[331629916,1720593045032,-500.0,0.00013698,2]
[331629917,1720593045041,-2500.0,0.00013698,2]
[331629918,1720593045053,-2500.0,0.00013698,2]
[331629919,1720593045063,-1061.47,0.00013698,2]
[331629920,1720593045073,-1562.71479614,0.00013698,2]
[331629921,1720593045083,-500.0,0.00013698,2]
[331629922,1720593045092,-500.0,0.00013698,2]
[331629923,1720593045102,-2243.85,0.00013698,2]
[331629924,1720593045111,-639.96,0.00013698,2]
[331629925,1720593045120,-727.12,0.00013698,2]
[331629926,1720593045129,-1365.17,0.00013698,2]
[331629927,1720593045139,-646.21,0.00013698,2]
[331629928,1720593045148,-1410.76,0.00013698,2]
[331629929,1720593045157,-835.29,0.00013698,2]
[331629930,1720593045166,-550.78,0.00013698,2]
[331629931,1720593045175,-707.61,0.00013698,2]
[331629932,1720593045185,-500.0,0.00013698,2]
[331629933,1720593045194,-500.0,0.00013698,2]
[331629934,1720593045203,-500.0,0.00013698,2]
[331629935,1720593045213,-500.0,0.00013698,2]
[331629936,1720593045223,-2052.4,0.00013698,2]
[331629937,1720593045232,-500.0,0.00013698,2]
[331629938,1720593045241,-500.0,0.00013698,2]
[331629939,1720593045250,-500.0,0.00013698,2]
[331629940,1720593045259,-522.71,0.00013698,2]
[331629941,1720593045267,-580.83,0.00013698,2]
[331629942,1720593045278,-1257.19,0.00013698,2]
[331629943,1720593045287,-562.62,0.00013698,2]
[331629944,1720593045297,-1014.95,0.00013698,2]
[331629945,1720593045306,-500.0,0.00013698,2]
[331629946,1720593045316,-525.75,0.00013698,2]
[331629947,1720593045325,-500.0,0.00013698,2]
[331629948,1720593045334,-500.0,0.00013698,2]
[331629949,1720593045344,-963.07,0.00013698,2]
[331629950,1720593045353,-1181.43,0.00013698,2]
[331629951,1720593045363,-509.59,0.00013698,2]
[331629952,1720593045372,-500.0,0.00013698,2]
[331629953,1720593045381,-1213.59,0.00013698,2]
[331629954,1720593045390,-500.0,0.00013698,2]
[331629955,1720593045399,-1040.64,0.00013698,2]
[331629956,1720593045408,-656.99,0.00013698,2]
[331629957,1720593045418,-500.0,0.00013698,2]
[331629958,1720593045427,-607.96,0.00013698,2]
[331629959,1720593045440,-529.95,0.00013698,2]
[331629960,1720593045449,-500.0,0.00013698,2]
[331629961,1720593045458,-1481.92,0.00013698,2]
[331629962,1720593045467,-1662.75,0.00013698,2]
[331629963,1720593045476,-517.54,0.00013698,2]
[331629964,1720593045485,-991.98,0.00013698,2]
[331629965,1720593045494,-719.5,0.00013698,2]
[331629966,1720593045503,-1692.57,0.00013698,2]
[331629967,1720593045512,-783.8,0.00013698,2]
[331629968,1720593045522,-831.69,0.00013698,2]
[331629969,1720593045532,-500.0,0.00013698,2]
[331629970,1720593045541,-1773.45,0.00013698,2]
[331629971,1720593045550,-500.0,0.00013698,2]
[331629972,1720593045559,-1020.67,0.00013698,2]
[331629973,1720593045568,-1950.83,0.00013698,2]
[331629974,1720593045577,-500.0,0.00013698,2]
[331629975,1720593045586,-500.0,0.00013698,2]
[331629976,1720593045595,-500.0,0.00013698,2]
[331629977,1720593045603,-624.43,0.00013698,2]
[331629978,1720593045612,-1946.32,0.00013698,2]
[331629979,1720593045621,-1053.07,0.00013698,2]
[331629980,1720593045630,-1613.44,0.00013698,2]
[331629981,1720593045639,-500.0,0.00013698,2]
[331629982,1720593045650,-500.0,0.00013698,2]
[331629983,1720593045659,-669.18,0.00013698,2]
[331629984,1720593045668,-500.0,0.00013698,2]
[331629985,1720593045677,-1360.56,0.00013698,2]
[331629986,1720593045688,-1549.96,0.00013698,2]
[331629987,1720593045697,-811.31,0.00013698,2]
[331629988,1720593045706,-2000.0,0.00013698,2]
[331629989,1720593045715,-500.0,0.00013698,2]
[331629990,1720593045724,-544.71,0.00013698,2]
[331629991,1720593045736,-730.28,0.00013698,2]
[331629992,1720593045745,-500.0,0.00013698,2]
[331629993,1720593045754,-745.94,0.00013698,2]
[331629994,1720593045764,-930.14,0.00013698,2]
[331629995,1720593045773,-500.0,0.00013698,2]
[331629996,1720593045782,-500.0,0.00013698,2]
[331629997,1720593045791,-573.52,0.00013698,2]
[331629998,1720593045800,-500.0,0.00013698,2]
[331629999,1720593045809,-152.15898347,0.00013698,2]
[331630000,1720593045818,-500.0,0.00013698,2]
[331630001,1720593045827,-500.0,0.00013698,2]
[331630002,1720593045837,-500.0,0.00013698,2]
[331630003,1720593045846,-500.0,0.00013698,2]
[331630004,1720593045854,-500.0,0.00013698,2]
[331630005,1720593045863,-500.0,0.00013698,2]
[331630006,1720593045872,-2397.3,0.00013698,2]
[331630007,1720593045881,-825.45,0.00013698,2]
[331630008,1720593045891,-1708.64,0.00013698,2]
[331630009,1720593045900,-500.0,0.00013698,2]
[331630010,1720593045910,-502.43,0.00013698,2]
[331630011,1720593045919,-500.0,0.00013698,2]
[331630012,1720593045930,-500.0,0.00013698,2]
[331630013,1720593045939,-857.27,0.00013698,2]
[331630014,1720593045948,-593.71,0.00013698,2]
[331630015,1720593045957,-671.49,0.00013698,2]
[331630016,1720593045966,-500.0,0.00013698,2]
[331630017,1720593045976,-500.0,0.00013698,2]
[331630018,1720593045986,-2270.0,0.00013698,2]
[331630019,1720593045996,-500.0,0.00013698,2]
[331630020,1720593046006,-401.92824864,0.00013698,2]
[331630021,1720593046015,-500.0,0.00013698,2]
[331630022,1720593046027,-801.91,0.00013698,2]
[331630023,1720593046037,-550.92,0.00013698,2]
[331630025,1720593046047,-992.36,0.00013698,2]
[331630026,1720593046057,-1720.13,0.00013698,2]
[331630027,1720593046066,-804.62,0.00013698,2]
[331630028,1720593046075,-1409.93,0.00013698,2]
[331630029,1720593046085,-1409.93,0.00013698,2]
[331630030,1720593046095,-1409.93,0.00013698,2]
[331630031,1720593046103,-500.0,0.00013698,2]
[331630032,1720593046114,-514.79,0.00013698,2]
[331630033,1720593046124,-500.0,0.00013698,2]
[331630034,1720593046134,-500.0,0.00013698,2]
[331630035,1720593046143,-500.0,0.00013698,2]
[331630036,1720593046153,-500.0,0.00013698,2]
[331630037,1720593046163,-500.0,0.00013698,2]
[331630038,1720593046172,-965.86,0.00013698,2]
[331630039,1720593046182,-529.7,0.00013698,2]
[331630040,1720593046191,-2274.65,0.00013698,2]
[331630041,1720593046201,-944.02,0.00013698,2]
[331630042,1720593046210,-1892.6,0.00013698,2]
[331630043,1720593046219,-769.54,0.00013698,2]
[331630044,1720593046229,-500.0,0.00013698,2]
[331630045,1720593046238,-500.0,0.00013698,2]
[331630046,1720593046249,-500.0,0.00013698,2]
[331630047,1720593046259,-500.0,0.00013698,2]
[331630048,1720593046268,-1519.09,0.00013698,2]
[331630049,1720593046280,-840.88,0.00013698,2]
[331630050,1720593046290,-500.0,0.00013698,2]
[331630051,1720593046302,-2803.11,0.00013698,2]
[331630052,1720593046312,-691.79,0.00013698,2]
[331630053,1720593046322,-2012.55,0.00013698,2]
[331630054,1720593046333,-500.0,0.00013698,2]
[331630055,1720593046343,-500.0,0.00013698,2]
[331630056,1720593046354,-500.0,0.00013698,2]
[331630057,1720593046363,-500.0,0.00013698,2]
[331630058,1720593046372,-616.28,0.00013698,2]
[331630059,1720593046381,-500.0,0.00013698,2]
[331630060,1720593046391,-811.96,0.00013698,2]
[331630061,1720593046400,-585.36,0.00013698,2]
[331630062,1720593046410,-697.96,0.00013698,2]
[331630063,1720593046419,-500.0,0.00013698,2]
[331630064,1720593046428,-677.92,0.00013698,2]
[331630065,1720593046438,-1810.89,0.00013698,2]
[331630066,1720593046448,-500.0,0.00013698,2]
[331630067,1720593046457,-568.0,0.00013698,2]
[331630068,1720593046467,-1489.85,0.00013698,2]
[331630069,1720593046477,-500.0,0.00013698,2]
[331630070,1720593046486,-1222.93,0.00013698,2]
[331630071,1720593046495,-2726.68,0.00013698,2]
[331630072,1720593046505,-500.0,0.00013698,2]
[331630073,1720593046515,-500.0,0.00013698,2]
[331630074,1720593046526,-1892.59,0.00013698,2]
[331630075,1720593046535,-500.0,0.00013698,2]
[331630076,1720593046546,-500.0,0.00013698,2]
[331630077,1720593046556,-500.0,0.00013698,2]
[331630078,1720593046565,-500.0,0.00013698,2]
[331630079,1720593046576,-500.0,0.00013698,2]
[331630080,1720593046587,-1408.43,0.00013698,2]
[331630081,1720593046597,-979.83,0.00013698,2]
[331630082,1720593046608,-500.0,0.00013698,2]
[331630083,1720593046618,-1019.69,0.00013698,2]
[331630084,1720593046628,-500.0,0.00013698,2]
[331630085,1720593046640,-2007.25,0.00013698,2]
[331630086,1720593046651,-500.0,0.00013698,2]
[331630087,1720593046660,-500.0,0.00013698,2]
[331630088,1720593046670,-500.0,0.00013698,2]
[331630089,1720593046678,-500.0,0.00013698,2]
[331630090,1720593046690,-1039.37,0.00013698,2]
[331630091,1720593046699,-500.0,0.00013698,2]
[331630092,1720593046712,-500.0,0.00013698,2]
[331630093,1720593046723,-1404.04,0.00013698,2]
[331630094,1720593046732,-720.7,0.00013698,2]
[331630095,1720593046741,-500.0,0.00013698,2]
[331630096,1720593046750,-500.0,0.00013698,2]
[331630097,1720593046759,-533.44,0.00013698,2]
[331630098,1720593046769,-1478.15,0.00013698,2]
[331630099,1720593046778,-866.72,0.00013698,2]
[331630100,1720593046787,-1974.6,0.00013698,2]
[331630101,1720593046797,-1748.77,0.00013698,2]
[331630102,1720593046806,-770.7,0.00013698,2]
[331630103,1720593046815,-1876.71,0.00013698,2]
[331630104,1720593046824,-1548.22,0.00013698,2]
[331630105,1720593046834,-500.0,0.00013698,2]
[331630106,1720593046843,-500.0,0.00013698,2]
[331630107,1720593046852,-500.0,0.00013698,2]
[331630108,1720593046862,-534.85,0.00013698,2]
[331630109,1720593046871,-2712.5,0.00013698,2]
[331630110,1720593046880,-500.0,0.00013698,2]
[331630111,1720593046890,-500.0,0.00013698,2]
[331630112,1720593046900,-500.0,0.00013698,2]
[331630113,1720593046910,-1702.83,0.00013698,2]
[331630114,1720593046921,-500.0,0.00013698,2]
[331630115,1720593046931,-827.11,0.00013698,2]
[331630116,1720593046941,-510.41,0.00013698,2]
[331630117,1720593046951,-500.0,0.00013698,2]
[331630118,1720593046961,-1203.67,0.00013698,2]
[331630119,1720593046970,-500.0,0.00013698,2]
[331630120,1720593046980,-766.64,0.00013698,2]
[331630121,1720593046990,-1099.17,0.00013698,2]
[331630122,1720593047000,-500.0,0.00013698,2]
[331630123,1720593047009,-500.0,0.00013698,2]
[331630124,1720593047019,-500.0,0.00013698,2]
[331630125,1720593047028,-769.62,0.00013698,2]
[331630126,1720593047038,-670.86,0.00013698,2]
[331630127,1720593047047,-500.0,0.00013698,2]
[331630128,1720593047057,-587.07,0.00013698,2]
[331630129,1720593047066,-2713.99,0.00013698,2]
[331630130,1720593047076,-500.0,0.00013698,2]
[331630131,1720593047085,-2904.73,0.00013698,2]
[331630132,1720593047094,-1536.81,0.00013698,2]
[331630133,1720593047104,-530.75,0.00013698,2]
[331630134,1720593047113,-659.18,0.00013698,2]
[331630135,1720593047123,-500.0,0.00013698,2]
[331630136,1720593047132,-500.0,0.00013698,2]
[331630138,1720593047142,-1859.23,0.00013698,2]
[331630139,1720593047151,-500.0,0.00013698,2]
[331630140,1720593047161,-1029.43,0.00013698,2]
[331630141,1720593047170,-535.57,0.00013698,2]
[331630142,1720593047180,-500.0,0.00013698,2]
[331630143,1720593047189,-727.59,0.00013698,2]
[331630144,1720593047198,-500.0,0.00013698,2]
[331630145,1720593047208,-926.42,0.00013698,2]
[331630146,1720593047218,-513.03,0.00013698,2]
[331630147,1720593047228,-601.00225761,0.00013698,2]
[331630148,1720593047238,-500.0,0.00013698,2]
[331630149,1720593047248,-1202.33,0.00013698,2]
[331630150,1720593047257,-912.33,0.00013698,2]
[331630151,1720593047267,-500.0,0.00013698,2]
[331630152,1720593047276,-600.19,0.00013698,2]
[331630153,1720593047287,-500.0,0.00013698,2]
[331630154,1720593047297,-500.0,0.00013698,2]
[331630155,1720593047306,-500.0,0.00013698,2]
[331630156,1720593047316,-1852.71,0.00013698,2]
[331630157,1720593047325,-823.92,0.00013698,2]
[331630158,1720593047334,-500.0,0.00013698,2]
[331630159,1720593047344,-500.0,0.00013698,2]
[331630160,1720593047354,-1062.1,0.00013698,2]
[331630161,1720593047363,-906.34,0.00013698,2]
[331630162,1720593047372,-500.0,0.00013698,2]
[331630163,1720593047381,-1083.69,0.00013698,2]
[331630164,1720593047390,-500.0,0.00013698,2]
[331630165,1720593047399,-691.83,0.00013698,2]
[331630166,1720593047408,-500.0,0.00013698,2]
[331630167,1720593047418,-637.2,0.00013698,2]
[331630168,1720593047427,-836.79,0.00013698,2]
[331630169,1720593047436,-671.42,0.00013698,2]
[331630170,1720593047446,-500.0,0.00013698,2]
[331630171,1720593047455,-500.0,0.00013698,2]
[331630172,1720593047464,-598.16244126,0.00013698,2]
[331630173,1720593047473,-532.85,0.00013698,2]
[331630174,1720593047482,-788.27,0.00013698,2]
[331630175,1720593047493,-500.0,0.00013698,2]
[331630176,1720593047502,-500.0,0.00013698,2]
[331630177,1720593047512,-621.59,0.00013698,2]
[331630178,1720593047525,-500.0,0.00013698,2]
[331630179,1720593047535,-500.0,0.00013698,2]
[331630180,1720593047545,-536.87,0.00013698,2]
[331630181,1720593047557,-2995.72,0.00013698,2]
[331630182,1720593047566,-600.48,0.00013698,2]
[331630183,1720593047576,-500.0,0.00013698,2]
[331630184,1720593047587,-500.0,0.00013698,2]
[331630185,1720593047598,-500.0,0.00013698,2]
[331630186,1720593047608,-677.67,0.00013698,2]
[331630187,1720593047619,-603.54,0.00013698,2]
[331630188,1720593047629,-1347.08,0.00013698,2]
[331630189,1720593047641,-500.0,0.00013698,2]
[331630190,1720593047652,-1127.25,0.00013698,2]
[331630191,1720593047661,-500.0,0.00013698,2]
[331630192,1720593047670,-500.0,0.00013698,2]
[331630193,1720593047679,-831.27,0.00013698,2]
[331630194,1720593047690,-500.0,0.00013698,2]
[331630195,1720593047700,-500.0,0.00013698,2]
[331630196,1720593047710,-500.0,0.00013698,2]
[331630197,1720593047720,-861.15,0.00013698,2]
[331630198,1720593047730,-500.0,0.00013698,2]
[331630199,1720593047740,-1101.72,0.00013698,2]
[331630200,1720593047750,-1195.51,0.00013698,2]
[331630201,1720593047759,-500.0,0.00013698,2]
[331630202,1720593047768,-500.0,0.00013698,2]
[331630203,1720593047777,-859.31,0.00013698,2]
[331630204,1720593047786,-500.0,0.00013698,2]
[331630205,1720593047797,-500.0,0.00013698,2]
[331630206,1720593047806,-985.15,0.00013698,2]
[331630207,1720593047818,-1023.99,0.00013698,2]
[331630208,1720593047828,-748.29,0.00013698,2]
[331630209,1720593047838,-444.24105535,0.00013698,2]
[331630210,1720593047848,-500.0,0.00013698,2]
[331630211,1720593047859,-500.0,0.00013698,2]
[331630212,1720593047868,-500.0,0.00013698,2]
[331630213,1720593047877,-500.0,0.00013698,2]
[331630214,1720593047887,-929.22,0.00013698,2]
[331630215,1720593047896,-737.98,0.00013698,2]
[331630216,1720593047906,-500.0,0.00013698,2]
[331630217,1720593048148,-500.0,0.00013698,2]
[331630218,1720593048188,-2040.26,0.00013698,2]
[331630219,1720593048198,-500.0,0.00013698,2]
[331630220,1720593048207,-1881.96,0.00013698,2]
[331630221,1720593048217,-500.0,0.00013698,2]
[331630222,1720593048226,-500.0,0.00013698,2]
[331630223,1720593048236,-500.0,0.00013698,2]
[331630224,1720593048246,-611.0,0.00013698,2]
[331630225,1720593048257,-1567.56,0.00013698,2]
[331630226,1720593048267,-1068.65,0.00013698,2]
[331630227,1720593048277,-500.0,0.00013698,2]
[331630228,1720593048287,-1192.55,0.00013698,2]
[331630229,1720593048297,-500.0,0.00013698,2]
[331630230,1720593048307,-581.79,0.00013698,2]
[331630231,1720593048317,-807.57,0.00013698,2]
[331630232,1720593048327,-748.17,0.00013698,2]
[331630233,1720593048336,-1688.94,0.00013698,2]
[331630234,1720593048345,-382.67046651,0.00013698,2]
[331630235,1720593048355,-1200.39,0.00013698,2]
[331630236,1720593048364,-565.17,0.00013698,2]
[331630237,1720593048373,-500.0,0.00013698,2]
[331630238,1720593048383,-500.0,0.00013698,2]
[331630239,1720593048392,-1516.81,0.00013698,2]
[331630240,1720593048401,-871.65,0.00013698,2]
[331630241,1720593048410,-500.0,0.00013698,2]
[331630242,1720593048419,-979.76,0.00013698,2]
[331630243,1720593048429,-500.0,0.00013698,2]
[331630244,1720593048439,-500.0,0.00013698,2]
[331630245,1720593048449,-998.97,0.00013698,2]
[331630246,1720593048458,-1968.5,0.00013698,2]
[331630247,1720593048467,-500.0,0.00013698,2]
[331630248,1720593048477,-1129.83,0.00013698,2]
[331630249,1720593048487,-558.02,0.00013698,2]
[331630250,1720593048497,-1358.61,0.00013698,2]
[331630251,1720593048508,-500.0,0.00013698,2]
[331630252,1720593048517,-1126.79,0.00013698,2]
[331630253,1720593048528,-500.0,0.00013698,2]
[331630254,1720593048539,-633.7,0.00013698,2]
[331630255,1720593048549,-1026.85,0.00013698,2]
[331630256,1720593048560,-958.98,0.00013698,2]
[331630257,1720593048571,-764.23,0.00013698,2]
[331630258,1720593048580,-1857.2,0.00013698,2]
[331630259,1720593048590,-1344.85,0.00013698,2]
[331630260,1720593048599,-556.29,0.00013698,2]
[331630261,1720593048609,-305.08875293,0.00013698,2]
[331630262,1720593048619,-1317.95,0.00013698,2]
[331630263,1720593048629,-1070.31,0.00013698,2]
[331630264,1720593048639,-441.77424545,0.00013698,2]
[331630265,1720593048649,-500.0,0.00013698,2]
[331630266,1720593048659,-529.1,0.00013698,2]
[331630267,1720593048669,-1609.57,0.00013698,2]
[331630268,1720593048678,-500.0,0.00013698,2]
[331630269,1720593048688,-790.0,0.00013698,2]
[331630270,1720593048698,-544.34,0.00013698,2]
[331630271,1720593048707,-500.0,0.00013698,2]
[331630272,1720593048716,-575.21,0.00013698,2]
[331630273,1720593048726,-1061.48,0.00013698,2]
[331630274,1720593048735,-1942.43,0.00013698,2]
[331630275,1720593048745,-742.49,0.00013698,2]
[331630276,1720593048755,-530.36,0.00013698,2]
[331630277,1720593048765,-514.92,0.00013698,2]
[331630278,1720593048775,-500.0,0.00013698,2]
[331630279,1720593048784,-500.0,0.00013698,2]
[331630280,1720593048793,-500.0,0.00013698,2]
[331630281,1720593048802,-2035.77,0.00013698,2]
[331630282,1720593048812,-1325.83,0.00013698,2]
[331630283,1720593048822,-1609.38,0.00013698,2]
[331630284,1720593048832,-500.0,0.00013698,2]
[331630285,1720593048841,-500.0,0.00013698,2]
[331630286,1720593048851,-500.0,0.00013698,2]
[331630287,1720593048861,-500.0,0.00013698,2]
[331630288,1720593048871,-983.67,0.00013698,2]
[331630289,1720593048881,-2788.63,0.00013698,2]
[331630290,1720593048891,-500.0,0.00013698,2]
[331630291,1720593048900,-500.0,0.00013698,2]
[331630292,1720593048910,-1764.99,0.00013698,2]
[331630293,1720593048919,-2084.41,0.00013698,2]
[331630294,1720593048929,-500.0,0.00013698,2]
[331630295,1720593048940,-500.0,0.00013698,2]
[331630296,1720593048949,-1773.85,0.00013698,2]
[331630297,1720593048959,-500.0,0.00013698,2]
[331630298,1720593048968,-760.79,0.00013698,2]
[331630299,1720593048979,-500.0,0.00013698,2]
[331630300,1720593048988,-500.0,0.00013698,2]
[331630301,1720593048997,-500.0,0.00013698,2]
[331630302,1720593049007,-500.0,0.00013698,2]
[331630303,1720593049017,-500.0,0.00013698,2]
[331630304,1720593049027,-2823.32,0.00013698,2]
[331630305,1720593049036,-528.31,0.00013698,2]
[331630306,1720593049046,-437.56762299,0.00013698,2]
[331630307,1720593049056,-500.0,0.00013698,2]
[331630308,1720593049067,-500.0,0.00013698,2]
[331630309,1720593049077,-500.0,0.00013698,2]
[331630310,1720593049086,-500.0,0.00013698,2]
[331630311,1720593049096,-616.15567412,0.00013698,2]
[331630312,1720593049105,-1310.36,0.00013698,2]
[331630313,1720593049116,-1317.96,0.00013698,2]
[331630314,1720593049126,-1823.36,0.00013698,2]
[331630315,1720593049135,-1380.24,0.00013698,2]
[331630316,1720593049145,-2841.11,0.00013698,2]
[331630317,1720593049155,-500.0,0.00013698,2]
[331630318,1720593049165,-2189.91,0.00013698,2]
[331630319,1720593049175,-1115.32,0.00013698,2]
[331630320,1720593049184,-741.18,0.00013698,2]
[331630321,1720593049193,-579.9,0.00013698,2]
[331630322,1720593049202,-1573.09,0.00013698,2]
[331630323,1720593049212,-1503.2,0.00013698,2]
[331630324,1720593049221,-1717.56,0.00013698,2]
[331630325,1720593049231,-500.0,0.00013698,2]
[331630326,1720593049241,-804.48,0.00013698,2]